[Event "Belt and Road Women 2024"]
[Site "Yuecheng Shaoxing"]
[Date "2024.07.27"]
[Round "4.6"]
[White "Yan, Tianqi"]
[Black "Stefanova, Antoaneta"]
[Result "0-1"]
[ECO "C72"]
[WhiteElo "2306"]
[BlackElo "2417"]
[Annotator "RC"]
[PlyCount "66"]
[EventDate "2024.08.01"]
[EventType "swiss"]
[EventCountry "CHN"]
[SourceTitle "playchess.com"]
[Source "ChessBase"]
[SourceQuality "1"]
[TimeControl "5400+30"]

1. e4 {[%emt 0:00:05]} e5 {[%emt 0:00:05]} 2. Nf3 {[%emt 0:00:07]} Nc6 {[%emt 0:00:03]} 3. Bb5 {[%emt 0:00:08]} a6 {[%emt 0:00:20]} 4. Ba4 {[%emt 0:00:23]} d6 {[%emt 0:00:38]} 5. O-O {[%emt 0:00:40]} Bd7 {[%emt 0:01:47]} 6. c4 {[%emt 0:01:16]} g5 {[%emt 0:02:18]} 7. d4 {[%emt 0:01:33]} g4 {[%emt 0:03:00]} 8. d5 {[%emt 0:00:21]} gxf3 {[%emt 0:03:28]} 9. dxc6 {[%emt 0:00:17]} bxc6 {[%emt 0:00:36]} 10. Qxf3 {[%emt 0:00:25]} Qh4 {[%emt 0:02:33]} 11. Nc3 {[%emt 0:06:42]} Nf6 {[%emt 0:07:59]} 12. Qg3 {[%emt 0:18:44]} Qxg3 {[%emt 0:11:17]} 13. hxg3 {[%emt 0:11:46]} Rg8 {[%emt 0:06:18]} 14. Rd1 {[%emt 0:12:56]} h5 {[%emt 0:10:11]} 15. b4 {[%emt 0:08:36]} Rg4 {[%emt 0:02:31]} 16. Re1 {[%emt 0:02:05]} Be7 {[%emt 0:01:23]} 17. Rb1 {[%emt 0:03:03]} Kf8 {[%emt 0:02:11]} 18. b5 {[%emt 0:03:54]} axb5 {[%emt 0:02:31]} 19. cxb5 {[%emt 0:00:11]} Nxe4 {[%emt 0:06:05]} 20. Nxe4 {[%emt 0:12:23]} Rxa4 {[%emt 0:02:22]} 21. f3 {[%emt 0:01:49]} Rg6 {[%emt 0:02:32]} 22. bxc6 {[%emt 0:03:27]} Bxc6 {[%emt 0:01:02]} 23. Rb8+ {[%emt 0:00:17]} Kg7 {[%emt 0:02:17]} 24. Rc8 {[%emt 0:00:09]} d5 {[%emt 0:02:28]} 25. Nc3 {[%emt 0:05:11]} Rc4 {[%emt 0:01:04]} 26. Bd2 {[%emt 0:00:41]} Bd6 {[%emt 0:02:47]} 27. a4 {[%emt 0:01:02]} Rxg3 {[%emt 0:01:54]} 28. a5 {[%emt 0:03:24]} Bb4 {[%emt 0:11:27]} 29. Nb1 {[%emt 0:01:35]} Bc5+ {[%emt 0:02:15]} 30. Be3 {[%emt 0:00:53]} Bxe3+ {[%emt 0:00:31]} 31. Rxe3 {[%emt 0:00:04]} Rc2 {[%emt 0:00:28]} 32. Rxc7 {[%emt 0:00:27]} Rgxg2+ {[%emt 0:00:21]} 33. Kh1 {[%emt 0:00:04]} Rh2+ {[%emt 0:00:08]} 0-1

[Event "Belt and Road Women 2024"]
[Site "Yuecheng Shaoxing"]
[Date "2024.07.27"]
[Round "4.7"]
[White "Shuvalova, Polina"]
[Black "Soumya, Swaminathan"]
[Result "1-0"]
[ECO "B66"]
[WhiteElo "2467"]
[BlackElo "2258"]
[Annotator "TA"]
[PlyCount "81"]
[EventDate "2024.08.01"]
[EventType "swiss"]
[EventCountry "CHN"]
[SourceTitle "playchess.com"]
[Source "ChessBase"]
[SourceQuality "1"]
[TimeControl "5400+30"]

{[%evp 13,81,25,29,18,18,14,33,24,30,28,40,40,35,25,76,68,127,131,147,152,143,102,267,244,468,469,1036,220,220,208,217,204,225,197,200,218,223,192,219,221,266,277,356,285,390,371,379,386,601,345,339,349,443,333,379,374,435,424,594,575,622,654,656,652,657,645,852,842,996,793]} 1. e4 {[%emt 0:00:03]} c5 {[%emt 0:00:39]} 2. Nf3 {[%emt 0:00:07]} Nc6 {[%emt 0:00:19]} 3. d4 {[%emt 0:00:08]} cxd4 {[%emt 0:00:14]} 4. Nxd4 {[%emt 0:00:05]} Nf6 {[%emt 0:00:06]} 5. Nc3 {[%emt 0:00:07]} d6 {[%emt 0:00:05]} 6. Bg5 {[%emt 0:00:13]} e6 {[%emt 0:00:05]} 7. Qd2 {[%emt 0:00:08]} a6 {[%emt 0:00:10]} 8. Nxc6 {[%emt 0:00:07]} bxc6 {[%emt 0:00:06]} 9. O-O-O {[%emt 0:00:04][%cal Oe4e5]} Be7 {[%emt 0:26:23]} 10. Bxf6 {[%emt 0:00:25] White is slightly better.} gxf6 {[%emt 0:02:45]} 11. Bc4 {[%emt 0:00:11]} Bb7 {[%emt 0:00:49] Black is weak on the light squares} 12. Bb3 {[%emt 0:02:54]} Qa5 {[%emt 0:07:55]} 13. Rhe1 {[%emt 0:04:54]} f5 {[%emt 0:04:23]} (13... O-O-O $11) 14. Qd4 {[%emt 0:03:45]} O-O {[%emt 0:12:25]} (14... O-O-O $1 $14) 15. Rd3 $16 {[%emt 0:26:57] [#] White wants to mate with Rg3+. White is more active.} e5 {[%emt 0:02:02]} 16. Qe3 {[%emt 0:00:57]} (16. exf5 $2 exd4 17. Rxe7 dxc3 $19) 16... f4 {[%emt 0:01:13]} 17. Qh3 {[%emt 0:04:05] Qh5 would now be deadly.} Bc8 $2 {[%emt 0:00:40] This move loses the game for Black.} (17... Qb6 $16) 18. Qh5 $18 {[%emt 0:12:52] Black must now prevent g4.} Kg7 $2 {[%emt 0:15:34]} (18... Qc5 19. Rf1 Kg7) 19. g4 {[%emt 0:05:57] [#] And now Rh3 would win.} h6 {[%emt 0:01:35]} (19... f3 $142 20. Rxf3 Qd8) 20. h4 $2 {[%emt 0:00:49]} (20. Rxd6 f6 21. Rd3 (21. Rxc6 Bd7 $18)) 20... Be6 {[%emt 0:01:44]} 21. g5 {[%emt 0:04:36]} hxg5 {[%emt 0:00:43] Strongly threatening ...Rh8.} 22. Bxe6 $40 {[%emt 0:00:09][%mdl 128] White has strong attack.} (22. hxg5 Rh8 23. Qd1 Bxb3 24. axb3 Qc7 $16 (24... Bxg5 $2 25. Rg1 $18) (24... Qa1+ 25. Nb1 $11)) 22... fxe6 {[%emt 0:00:11]} 23. hxg5 {[%emt 0:00:04][%cal Bh4g5,Bg5g6][%mdl 32]} Rh8 {[%emt 0:00:37] Against Qh6+} 24. Qg4 {[%emt 0:00:04]} Qd8 {[%emt 0:09:10]} 25. Qxe6 {[%emt 0:03:45] Hoping for Rh3.} Qf8 {[%emt 0:00:05]} 26. Qd7 {[%emt 0:03:36][%csl LRc6,LRd6]} Rc8 {[%emt 0:00:47]} 27. Rg1 {[%emt 0:00:06]} (27. Rxd6 $2 Rd8 $19) 27... Qf7 {[%emt 0:01:26]} 28. g6 {[%emt 0:03:00]} Qf6 {[%emt 0:00:39]} 29. a3 {[%emt 0:00:26]} Rhd8 {[%emt 0:04:06]} 30. Qb7 {[%emt 0:02:07]} Qe6 {[%emt 0:04:30] Prevents Rh3.} (30... Rh8 $142 31. Rh3 (31. Qxa6 Qf8 $18) 31... Rxh3) 31. Kb1 {[%emt 0:00:11]} Rh8 {[%emt 0:02:10] Dodges Rh3} 32. Qxa6 {[%emt 0:01:11]} Rh2 {[%emt 0:01:02]} 33. f3 {[%emt 0:02:10]} Qd7 {[%emt 0:00:53]} 34. Qc4 {[%emt 0:01:15]} Rf8 {[%emt 0:00:12] Wards off Qf7+} 35. Na2 {[%emt 0:03:31][%cal Bc3a2,Ba2b4,Bb4c6][%mdl 32] White is clearly winning.} Rf6 {[%emt 0:01:30]} (35... Rh3 $142 36. Nb4 Bf6) 36. Nb4 {[%emt 0:00:50]} Rxg6 {[%emt 0:00:36]} 37. Rxg6+ {[%emt 0:00:24]} (37. Qxc6 $2 {is the wrong capture.} Rxg1+ 38. Ka2 Qxc6 39. Nxc6 Kf7 $19) 37... Kxg6 {[%emt 0:00:02]} 38. Nxc6 {[%emt 0:02:16]} Rh1+ {[%emt 0:00:31]} 39. Ka2 {[%emt 0:00:03] White threatens Nxe5+ and mate.} Bf6 {[%emt 0:00:11]} 40. Qg8+ {[%emt 0:01:35]} Kh5 {[%emt 0:00:05]} 41. Nb4 {[%emt 0:00:31] Weighted Error Value: White=0.26 (precise) /Black=0.60.  Loses game:     	---       	Black=1      Mistake:       	White=1     	Black=6      Inaccurate:     	White=1     	Black=1      OK:         	White=13    	Black=6      Best:        	White=2     	Black=1} 1-0

[Event "Belt and Road Women 2024"]
[Site "Yuecheng Shaoxing"]
[Date "2024.07.27"]
[Round "4.8"]
[White "Pham, Le Thao Nguyen"]
[Black "Wang, Qinxuanyi"]
[Result "1-0"]
[ECO "D23"]
[WhiteElo "2395"]
[BlackElo "2149"]
[Annotator "RC"]
[PlyCount "79"]
[EventDate "2024.08.01"]
[EventType "swiss"]
[EventCountry "CHN"]
[SourceTitle "playchess.com"]
[Source "ChessBase"]
[SourceQuality "1"]
[TimeControl "5400+30"]

1. d4 {[%emt 0:00:07]} d5 {[%emt 0:00:08]} 2. c4 {[%emt 0:00:20]} c6 {[%emt 0:00:10]} 3. Nf3 {[%emt 0:00:22]} Nf6 {[%emt 0:00:10]} 4. Qc2 {[%emt 0:01:15]} dxc4 {[%emt 0:01:11]} 5. Qxc4 {[%emt 0:00:11]} Bg4 {[%emt 0:00:07]} 6. Nbd2 {[%emt 0:00:51]} Nbd7 {[%emt 0:04:51]} 7. h3 {[%emt 0:01:50]} Bf5 {[%emt 0:01:06]} 8. g3 {[%emt 0:00:43]} e6 {[%emt 0:02:00]} 9. Bg2 {[%emt 0:01:13]} Be7 {[%emt 0:05:12]} 10. Qb3 {[%emt 0:04:44]} Qb6 {[%emt 0:00:46]} 11. O-O {[%emt 0:01:31]} h6 {[%emt 0:03:41]} 12. Nc4 {[%emt 0:05:38]} Qxb3 {[%emt 0:02:12]} 13. axb3 {[%emt 0:00:09]} Be4 {[%emt 0:00:32]} 14. Bf4 {[%emt 0:03:32]} O-O {[%emt 0:09:38]} 15. Rfc1 {[%emt 0:08:00]} b6 {[%emt 0:10:44]} 16. Bd6 {[%emt 0:13:52]} Bxd6 {[%emt 0:03:38]} 17. Nxd6 {[%emt 0:00:12]} Bd5 {[%emt 0:00:04]} 18. b4 {[%emt 0:04:04]} Rfd8 {[%emt 0:18:12]} 19. Ne5 {[%emt 0:09:18]} Nxe5 {[%emt 0:00:32]} 20. dxe5 {[%emt 0:00:14]} Bxg2 {[%emt 0:00:05]} 21. Kxg2 {[%emt 0:00:13]} Nd7 {[%emt 0:03:44]} 22. f4 {[%emt 0:00:32]} c5 {[%emt 0:00:05]} 23. b5 {[%emt 0:01:04]} f6 {[%emt 0:00:31]} 24. Nc4 {[%emt 0:00:43]} fxe5 {[%emt 0:00:07]} 25. fxe5 {[%emt 0:00:56]} Nf8 {[%emt 0:00:06]} 26. b3 {[%emt 0:01:20]} Ng6 {[%emt 0:03:15]} 27. Rd1 {[%emt 0:06:48]} Rd5 {[%emt 0:01:47]} 28. Rxd5 {[%emt 0:04:56]} exd5 {[%emt 0:00:04]} 29. Nxb6 {[%emt 0:00:16]} Rb8 {[%emt 0:00:11]} 30. Nxd5 {[%emt 0:00:46]} Rxb5 {[%emt 0:00:20]} 31. e6 {[%emt 0:00:55]} Rxb3 {[%emt 0:03:37]} 32. Rxa7 {[%emt 0:00:30]} Rb8 {[%emt 0:00:16]} 33. Rc7 {[%emt 0:02:57]} Nf8 {[%emt 0:05:18]} 34. Rc6 {[%emt 0:05:08]} Re8 {[%emt 0:02:11]} 35. Nc7 {[%emt 0:01:25]} Re7 {[%emt 0:00:26]} 36. Kf3 {[%emt 0:01:25]} c4 {[%emt 0:06:27]} 37. Ke4 {[%emt 0:01:36]} c3 {[%emt 0:01:48]} 38. Kd5 {[%emt 0:00:52]} Ng6 {[%emt 0:03:17]} 39. Rxc3 {[%emt 0:00:43]} h5 {[%emt 0:00:22]} 40. Kd6 {[%emt 0:00:43]} 1-0

[Event "Belt and Road Women 2024"]
[Site "Yuecheng Shaoxing"]
[Date "2024.07.27"]
[Round "4.9"]
[White "Guo, Qi"]
[Black "Velikic, Adela"]
[Result "1-0"]
[ECO "D45"]
[WhiteElo "2362"]
[BlackElo "2290"]
[Annotator "RC"]
[PlyCount "73"]
[EventDate "2024.08.01"]
[EventType "swiss"]
[EventCountry "CHN"]
[SourceTitle "playchess.com"]
[Source "ChessBase"]
[SourceQuality "1"]
[TimeControl "5400+30"]

1. d4 {[%emt 0:00:06]} d5 {[%emt 0:00:06]} 2. c4 {[%emt 0:00:05]} c6 {[%emt 0:00:04]} 3. Nf3 {[%emt 0:00:38]} Nf6 {[%emt 0:00:13]} 4. Nc3 {[%emt 0:03:19]} e6 {[%emt 0:00:10]} 5. e3 {[%emt 0:07:18]} Nbd7 {[%emt 0:00:12]} 6. Be2 {[%emt 0:00:07]} Bd6 {[%emt 0:00:25]} 7. O-O {[%emt 0:00:08]} O-O {[%emt 0:00:12]} 8. b3 {[%emt 0:00:05]} b6 {[%emt 0:01:04]} 9. Bb2 {[%emt 0:00:07]} Bb7 {[%emt 0:00:19]} 10. a4 {[%emt 0:00:06]} Re8 {[%emt 0:23:43]} 11. a5 {[%emt 0:08:12]} bxa5 {[%emt 0:03:44]} 12. c5 {[%emt 0:03:40]} Bc7 {[%emt 0:01:18]} 13. Qc2 {[%emt 0:00:51]} Nb8 {[%emt 0:12:28]} 14. Ne5 {[%emt 0:05:06]} Nfd7 {[%emt 0:12:45]} 15. f4 {[%emt 0:01:30]} f6 {[%emt 0:01:35]} 16. Nxd7 {[%emt 0:17:49]} Qxd7 {[%emt 0:00:21]} 17. e4 {[%emt 0:01:41]} Na6 {[%emt 0:05:21]} 18. e5 {[%emt 0:10:35]} Nb4 {[%emt 0:00:34]} 19. Qd2 {[%emt 0:00:02]} Ba6 {[%emt 0:12:34]} 20. exf6 {[%emt 0:06:45]} Bxe2 {[%emt 0:02:29]} 21. Nxe2 {[%emt 0:00:42]} gxf6 {[%emt 0:00:28]} 22. Bc3 {[%emt 0:00:32]} Rab8 {[%emt 0:02:18]} 23. Ra4 {[%emt 0:00:03]} Rf8 {[%emt 0:15:59]} 24. Rf3 {[%emt 0:04:35]} Kh8 {[%emt 0:03:27]} 25. Ra1 {[%emt 0:05:07]} Qf7 {[%emt 0:00:25]} 26. f5 {[%emt 0:02:20]} Qh5 {[%emt 0:00:39]} 27. Ng3 {[%emt 0:00:47]} Bxg3 {[%emt 0:00:28]} 28. hxg3 {[%emt 0:00:02]} exf5 {[%emt 0:00:25]} 29. Rxa5 {[%emt 0:00:08]} Rfe8 {[%emt 0:00:41]} 30. Bxb4 {[%emt 0:00:14]} Re4 {[%emt 0:00:25]} 31. Rxa7 {[%emt 0:05:24]} Rbe8 {[%emt 0:00:33]} 32. Ra1 {[%emt 0:00:28]} f4 {[%emt 0:00:32]} 33. Rxf4 {[%emt 0:06:43]} Re2 {[%emt 0:00:04]} 34. Qd3 {[%emt 0:00:05]} R8e3 {[%emt 0:00:34]} 35. Qf5 {[%emt 0:01:18]} Rxg2+ {[%emt 0:00:52]} 36. Kxg2 {[%emt 0:00:05]} Re2+ {[%emt 0:00:05]} 37. Kf1 {[%emt 0:00:56]} 1-0

[Event "Belt and Road Women 2024"]
[Site "Yuecheng Shaoxing"]
[Date "2024.07.27"]
[Round "4.10"]
[White "Kairbekova, Amina"]
[Black "Zhai, Mo"]
[Result "0-1"]
[ECO "C67"]
[WhiteElo "2244"]
[BlackElo "2348"]
[Annotator "RC"]
[PlyCount "122"]
[EventDate "2024.08.01"]
[EventType "swiss"]
[EventCountry "CHN"]
[SourceTitle "playchess.com"]
[Source "ChessBase"]
[SourceQuality "1"]
[TimeControl "5400+30"]

1. e4 {[%emt 0:00:48]} e5 {[%emt 0:00:07]} 2. Nf3 {[%emt 0:00:04]} Nc6 {[%emt 0:00:10]} 3. Bb5 {[%emt 0:00:04]} Nf6 {[%emt 0:00:33]} 4. O-O {[%emt 0:00:25]} Nxe4 {[%emt 0:00:34]} 5. Re1 {[%emt 0:00:17]} Nd6 {[%emt 0:00:08]} 6. Nxe5 {[%emt 0:00:05]} Be7 {[%emt 0:00:15]} 7. Bf1 {[%emt 0:00:06]} Nxe5 {[%emt 0:04:29]} 8. Rxe5 {[%emt 0:00:18]} O-O {[%emt 0:00:08]} 9. d4 {[%emt 0:00:04]} Ne8 {[%emt 0:02:14]} 10. d5 {[%emt 0:00:25]} Bc5 {[%emt 0:00:39]} 11. Re1 {[%emt 0:00:24]} d6 {[%emt 0:01:14]} 12. Nc3 {[%emt 0:00:28]} Bf5 {[%emt 0:02:05]} 13. Bd3 {[%emt 0:00:38]} Qf6 {[%emt 0:01:12]} 14. Ne4 {[%emt 0:00:38]} Bxe4 {[%emt 0:01:04]} 15. Rxe4 {[%emt 0:00:06]} Qxf2+ {[%emt 0:00:26]} 16. Kh1 {[%emt 0:00:06]} Qf6 {[%emt 0:00:11]} 17. c3 {[%emt 0:02:12]} g6 {[%emt 0:00:32]} 18. a4 {[%emt 0:03:52]} a6 {[%emt 0:07:39]} 19. b4 {[%emt 0:08:19]} Ba7 {[%emt 0:01:57]} 20. Bb2 {[%emt 0:03:14]} Qf2 {[%emt 0:09:09]} 21. Re2 {[%emt 0:03:38]} Qf4 {[%emt 0:02:29]} 22. Re4 {[%emt 0:20:50]} Qf2 {[%emt 0:00:48]} 23. Bc1 {[%emt 0:13:32]} Qf6 {[%emt 0:00:34]} 24. Bh6 {[%emt 0:08:45]} Ng7 {[%emt 0:00:23]} 25. Qd2 {[%emt 0:01:46]} Rfe8 {[%emt 0:11:36]} 26. Rae1 {[%emt 0:14:43]} Qf2 {[%emt 0:07:42]} 27. Qxf2 {[%emt 0:11:37]} Bxf2 {[%emt 0:00:02]} 28. R1e2 {[%emt 0:00:40]} Rxe4 {[%emt 0:01:42]} 29. Rxe4 {[%emt 0:05:23]} Re8 {[%emt 0:05:45]} 30. Bd2 {[%emt 0:00:05]} f5 {[%emt 0:02:33]} 31. Rxe8+ {[%emt 0:00:23]} Nxe8 {[%emt 0:00:02]} 32. g3 {[%emt 0:00:11]} Nf6 {[%emt 0:00:55]} 33. Kg2 {[%emt 0:00:05]} Ba7 {[%emt 0:00:36]} 34. c4 {[%emt 0:00:24]} Bd4 {[%emt 0:05:15]} 35. h3 {[%emt 0:00:16]} Kf7 {[%emt 0:05:35]} 36. Kf3 {[%emt 0:00:54]} Nd7 {[%emt 0:00:58]} 37. Ke2 {[%emt 0:02:04]} Ne5 {[%emt 0:02:24]} 38. Bg5 {[%emt 0:00:10]} Nxd3 {[%emt 0:00:26]} 39. Kxd3 {[%emt 0:00:05]} Bf6 {[%emt 0:00:56]} 40. Bd2 {[%emt 0:00:42]} h5 {[%emt 0:07:14]} 41. Ke2 {[%emt 0:01:38]} g5 {[%emt 0:07:46]} 42. Bc1 {[%emt 0:00:34]} Kg6 {[%emt 0:01:17]} 43. Be3 {[%emt 0:00:30]} Be5 {[%emt 0:01:26]} 44. Kf2 {[%emt 0:00:17]} b6 {[%emt 0:01:47]} 45. Bd2 {[%emt 0:00:37]} Bd4+ {[%emt 0:02:34]} 46. Ke2 {[%emt 0:00:19]} Be5 {[%emt 0:01:04]} 47. Kf2 {[%emt 0:00:05]} g4 {[%emt 0:01:54]} 48. h4 {[%emt 0:00:09]} f4 {[%emt 0:00:25]} 49. gxf4 {[%emt 0:01:03]} Bd4+ {[%emt 0:00:09]} 50. Kg3 {[%emt 0:00:27]} Kf5 {[%emt 0:00:07]} 51. b5 {[%emt 0:00:41]} a5 {[%emt 0:00:50]} 52. Bc1 {[%emt 0:00:44]} Ke4 {[%emt 0:00:56]} 53. Kg2 {[%emt 0:00:38]} Bf6 {[%emt 0:00:29]} 54. Kg3 {[%emt 0:00:04]} Kd3 {[%emt 0:01:21]} 55. f5 {[%emt 0:00:05]} Ke4 {[%emt 0:00:31]} 56. Bd2 {[%emt 0:01:21]} Kxf5 {[%emt 0:00:18]} 57. Bh6 {[%emt 0:00:18]} Ke4 {[%emt 0:00:31]} 58. Bc1 {[%emt 0:00:06]} Be5+ {[%emt 0:01:01]} 59. Kg2 {[%emt 0:00:18]} Kd4 {[%emt 0:00:33]} 60. Bg5 {[%emt 0:00:06]} Kxc4 {[%emt 0:00:07]} 61. Bd8 {[%emt 0:00:05]} Kb4 {[%emt 0:00:15]} 0-1

[Event "Belt and Road Women 2024"]
[Site "Yuecheng Shaoxing"]
[Date "2024.07.27"]
[Round "4.11"]
[White "Yang, Yijing"]
[Black "Xiao, Yiyi"]
[Result "0-1"]
[ECO "D37"]
[WhiteElo "2022"]
[BlackElo "2338"]
[Annotator "RC"]
[PlyCount "54"]
[EventDate "2024.08.01"]
[EventType "swiss"]
[EventCountry "CHN"]
[SourceTitle "playchess.com"]
[Source "ChessBase"]
[SourceQuality "1"]
[TimeControl "5400+30"]

1. Nf3 {[%emt 0:00:06]} d5 {[%emt 0:00:25]} 2. d4 {[%emt 0:00:11]} Nf6 {[%emt 0:10:59]} 3. c4 {[%emt 0:00:18]} e6 {[%emt 0:00:49]} 4. Nc3 {[%emt 0:00:29]} Be7 {[%emt 0:00:39]} 5. Bf4 {[%emt 0:01:56]} O-O {[%emt 0:00:41]} 6. e3 {[%emt 0:00:45]} Nbd7 {[%emt 0:01:09]} 7. c5 {[%emt 0:03:53]} Ne4 {[%emt 0:01:56]} 8. Qc2 {[%emt 0:11:18]} g5 {[%emt 0:12:05]} 9. Bg3 {[%emt 0:32:21]} f5 {[%emt 0:00:21]} 10. Nxe4 {[%emt 0:11:02]} dxe4 {[%emt 0:08:39]} 11. Nd2 {[%emt 0:00:15]} f4 {[%emt 0:22:21]} 12. Nxe4 {[%emt 0:03:57]} fxg3 {[%emt 0:00:10]} 13. hxg3 {[%emt 0:00:08]} Rf7 {[%emt 0:00:03]} 14. Bc4 {[%emt 0:00:35]} Nf8 {[%emt 0:00:07]} 15. O-O-O {[%emt 0:01:10]} c6 {[%emt 0:07:11]} 16. f4 {[%emt 0:07:08]} b5 {[%emt 0:00:00]} 17. Bd3 {[%emt 0:02:30]} Rg7 {[%emt 0:00:00]} 18. Rh5 {[%emt 0:01:52]} Bd7 {[%emt 0:01:46]} 19. Rdh1 {[%emt 0:07:11]} Be8 {[%emt 0:00:25]} 20. Rh6 {[%emt 0:01:02]} Bg6 {[%emt 0:01:03]} 21. Nf2 {[%emt 0:04:29]} Qd5 {[%emt 0:08:17]} 22. Bxg6 {[%emt 0:03:52]} Nxg6 {[%emt 0:01:02]} 23. Ng4 {[%emt 0:00:58]} Qf5 {[%emt 0:04:23]} 24. Qe2 {[%emt 0:01:04]} gxf4 {[%emt 0:03:00]} 25. R6h5 {[%emt 0:03:21]} Qe4 {[%emt 0:00:07]} 26. Ne5 {[%emt 0:01:05]} fxe3 {[%emt 0:02:13]} 27. Rh6 {[%emt 0:00:32]} Nxe5 {[%emt 0:00:33]} 0-1